fUSD/lending_fUSD_20240828
["ID","MTS","AMOUNT","RATE_DAILY","PERIOD"]
[336496487,1724880645572,-405.79,0.0002048,2]
[336496488,1724880645581,-405.79,0.0002048,2]
[336496489,1724880645590,-243.34960819,0.00020589,2]
[336496490,1724880645600,-1212.14062634,0.0002059,4]
[336496491,1724880645615,-40561.43998269,0.0002059,4]
[336496492,1724880645627,-56846.37014893,0.0002059,4]
[336496493,1724880645637,-200.0,0.0002059,2]
[336496494,1724880645647,-1934.88204408,0.00020597,2]
[336496495,1724880645657,-1000.0,0.00020599,2]
[336496496,1724880645667,-2500.0,0.000206,5]
[336496497,1724880645677,-4748.17218061,0.000206,2]
[336496498,1724880645687,-32617.46872349,0.000206,15]
[336496499,1724880645696,-43319.21501002,0.000206,15]
[336496500,1724880645708,-3186.4,0.000206,15]
[336496501,1724880645771,-276.67854992,0.000206,15]
[336496502,1724880645783,-1956.77125,0.000206,15]
[336496503,1724880645795,-270.73967341,0.000206,15]
[336496504,1724880645806,-11649.77714005,0.000206,15]
[336496505,1724880645826,-36588.17410419,0.000206,15]
[336496506,1724880666464,1050.0,0.0001,2]
[336496507,1724880672735,150.048481,0.00010958,2]
[336496508,1724880673006,152.330078,0.00010958,2]
[336496509,1724880673056,150.048481,0.00010958,2]
[336496510,1724880673318,152.330078,0.00010958,2]
[336496511,1724880673419,150.048481,0.00010958,2]
[336496512,1724880673640,152.330078,0.00010958,2]
[336496513,1724880673682,150.048481,0.00010958,2]
[336496514,1724880674004,150.048481,0.00010958,2]
[336496515,1724880674412,152.330078,0.00010997,2]
[336496516,1724880674701,152.330078,0.00010998,2]
[336496517,1724880674772,150.048481,0.00010997,2]
[336496518,1724880675115,150.048481,0.00010997,2]
[336496519,1724880675144,152.330078,0.00010998,2]
[336496520,1724880675413,150.048481,0.00010998,2]
[336496521,1724880675445,152.330078,0.00010998,2]
[336496522,1724880675739,150.048481,0.00010998,2]
[336496523,1724880675773,152.330078,0.00010998,2]
[336496524,1724880676043,150.048481,0.00010998,2]
[336496525,1724880676073,152.330078,0.00010998,2]
[336496526,1724880676742,150.048481,0.00010998,2]
[336496527,1724880676774,152.330078,0.00010998,2]
[336496528,1724880676944,152.330078,0.00010998,2]
[336496529,1724880676987,150.048481,0.00010998,2]
[336496530,1724880677050,150.048481,0.00010998,2]
[336496531,1724880677079,152.330078,0.00010998,2]
[336496532,1724880677362,150.048481,0.00010998,2]
[336496533,1724880677685,1529.21771623,0.00010958,2]
[336496534,1724880677711,1973.14402977,0.00010958,2]
[336496535,1724880678090,3502.361746,0.00010958,2]
[336496536,1724880678297,3502.361746,0.00010958,2]
[336496537,1724880678832,3502.361746,0.00010958,2]
[336496538,1724880679150,3502.361746,0.00010958,2]
[336496539,1724880681352,4376.52665,0.00010958,2]
[336496540,1724880681423,4376.52665,0.00010958,2]
[336496541,1724880681927,4376.52665,0.00010958,2]
[336496542,1724880682180,4376.52665,0.00010958,2]
[336496543,1724880682253,4376.52665,0.00010958,2]
[336496544,1724880686385,1366.296429,0.00010958,2]
[336496545,1724880686708,1366.296429,0.00010958,2]
[336496546,1724880687012,1366.296429,0.00010958,2]
[336496547,1724880687316,1366.296429,0.00010958,2]
[336496548,1724880687693,1366.296429,0.00010958,2]
[336496549,1724880914367,302.71810455,0.00010899,2]
[336496556,1724880992260,10101.4676,0.00010898,2]
[336496596,1724881831622,-1725.0,0.00010997,2]
[336496597,1724881831632,-280.57355483,0.000126,2]
[336496598,1724881831685,-219.39644517,0.000126,2]
[336496599,1724881831693,-261.63193826,0.00015,15]
[336496600,1724881831702,-153.76,0.00015038,2]
[336496601,1724881831712,-1296.0,0.000163,3]
[336496602,1724881831721,-200.0,0.0001824,2]
[336496603,1724881831730,-150.0,0.00018603,2]
[336496604,1724881831742,-171.53,0.00018683,2]
[336496605,1724881831752,-710.65951569,0.000187,7]
[336496606,1724881831812,-455.94048431,0.000187,7]
[336496607,1724881831823,-2751.0,0.00018873,2]
[336496608,1724881831832,-23900.0,0.00018887,2]
[336496609,1724881831841,-250.0,0.00018894,2]
[336496610,1724881831851,-171.53,0.0001898,2]
[336496611,1724881831860,-200.0,0.00019002,2]
[336496612,1724881831870,-822.13,0.00019009,2]
[336496613,1724881831884,-200.01,0.0001901,2]
[336496614,1724881831894,-173.33,0.00020035,2]
[336496615,1724881831904,-167.0,0.00020119,2]
[336496616,1724881831915,-200.0,0.000204,7]
[336496617,1724881831924,-500.0,0.0002043,2]
[336496618,1724881831935,-500.0,0.0002043,2]
[336496619,1724881831945,-1000.0,0.0002048,2]
[336496620,1724881831959,-2359.9087,0.0002049,2]
[336496621,1724881831969,-272.44629414,0.00020497,2]
[336496622,1724881831978,-186.22651353,0.000205,2]
[336496623,1724881831988,-261.475,0.000205,2]
[336496624,1724881831997,-232.59,0.000205,2]
[336496625,1724881832007,-500.0,0.000205,7]
[336496626,1724881832017,-200.0,0.0002052,2]
[336496627,1724881832027,-150.5,0.0002057,30]
[336496628,1724881832036,-500.0,0.00020573,2]
[336496629,1724881832046,-150.5,0.0002058,30]
[336496630,1724881832056,-37689.77949453,0.0002058,4]
[336496631,1724881832075,-21869.43553617,0.0002058,4]
[336496632,1724881832085,-151.81,0.0002058,2]
[336496633,1724881832094,-300.0,0.00020584,5]
[336496634,1724881832103,-19853.0716769,0.0002059,4]
[336496635,1724881832113,-150.5,0.0002059,30]
[336496636,1724881832122,-2108.75419529,0.0002059,4]
[336496637,1724881832133,-14391.01,0.0002059,4]
[336496638,1724881832144,-3149.336492,0.0002059,4]
[336496639,1724881832155,-322.91174239,0.0002059,4]
[336496640,1724881832180,-2039.35114403,0.0002059,4]
[336496641,1724881832194,-577.93776837,0.0002059,4]
[336496644,1724881837664,-24023.90098069,0.0002059,4]
[336496646,1724881837722,-654.61948218,0.0002059,4]
[336496647,1724881837781,-5000.0,0.0002059,4]
[336496648,1724881837793,-337.32560604,0.0002059,4]
[336496649,1724881837804,-1000.71466996,0.0002059,4]
[336496650,1724881837816,-843.27,0.0002059,4]
[336496651,1724881837827,-767.60870873,0.0002059,4]
[336496821,1724881839796,-5749.0,0.0002059,4]
[336496823,1724881839808,-293.04699676,0.0002059,4]
[336496826,1724881839820,-1213.13686397,0.0002059,4]
[336496828,1724881839831,-354.33584849,0.0002059,4]
[336496860,1724881840146,-281.83633852,0.0002059,4]
[336496863,1724881840165,-687.06,0.0002059,4]
[336496865,1724881840177,-1558.49740916,0.0002059,4]
[336496867,1724881840188,-2923.62999489,0.0002059,4]
[336496869,1724881840200,-12414.52112455,0.0002059,4]
[336496872,1724881840212,-502.49888056,0.0002059,4]
[336496874,1724881840223,-531.2423039,0.0002059,4]
[336496877,1724881840247,-1035.0,0.0002059,4]
[336496879,1724881840258,-2556.83930075,0.0002059,4]
[336497098,1724881842854,-353.68,0.00017944,2]
[336497099,1724881842864,-353.68,0.00020208,2]
[336497100,1724881842874,-399.11,0.0002058,2]
[336497101,1724881842886,-399.11,0.0002058,2]
[336497102,1724881842895,-399.11,0.0002058,2]
[336497103,1724881842904,-399.11,0.0002058,2]
[336497104,1724881842913,-399.11,0.0002058,2]
[336497105,1724881842922,-399.11,0.0002058,2]
[336497106,1724881842931,-399.11,0.0002058,2]
[336497107,1724881842940,-399.11,0.0002058,2]
[336497108,1724881842949,-399.11,0.0002058,2]
[336497109,1724881842960,-399.11,0.0002058,2]
[336497110,1724881842969,-399.11,0.0002058,2]
[336497111,1724881842978,-6864.83,0.0002059,4]
[336497121,1724881844425,-475.92806776,0.0002059,4]
[336497122,1724881844443,-694.512008,0.0002059,4]
[336497123,1724881844454,-301.25385499,0.0002059,4]
[336497124,1724881844465,-1016.18242901,0.0002059,4]
[336497125,1724881844480,-1260.0,0.0002059,4]
[336497126,1724881844542,-399.11,0.0002058,2]
[336497127,1724881844552,-27330.35753324,0.0002059,4]
[336497128,1724881844576,-1961.19006531,0.0002059,4]
[336497129,1724881844640,-446.25,0.0002059,4]
[336497133,1724881845653,-399.11,0.0002058,2]
[336497134,1724881845663,-50.89,0.0002058,2]
[336497135,1724881845677,-348.22,0.0002058,2]
[336497136,1724881845687,-399.11,0.0002058,2]
[336497137,1724881845696,-0.07697802,0.0002058,2]
[336497138,1724881845709,-399.03302198,0.0002058,2]
[336497139,1724881845719,-106.10697802,0.0002058,2]
[336497140,1724881845731,-292.064,0.0002058,2]
[336497141,1724881845743,-0.93902198,0.0002058,2]
[336497142,1724881845752,-399.11,0.0002058,2]
[336497143,1724881845762,-399.11,0.0002058,2]
[336497144,1724881845773,-399.11,0.0002058,2]
[336497145,1724881845784,-399.11,0.0002058,2]
[336497146,1724881845795,-41.37945147,0.0002058,2]
[336497147,1724881845806,-357.73054853,0.0002058,2]
[336497148,1724881845816,-251.43848631,0.0002059,4]
[336497149,1724881845827,-27322.39,0.0002059,4]
[336497150,1724881845838,-23521.10543407,0.0002059,4]
[336497151,1724881845851,-17412.24119828,0.0002059,4]
[336497152,1724881845888,-849.13398569,0.0002059,4]
[336497153,1724881845900,-1734.84626364,0.0002059,4]
[336497154,1724881845939,-399.11,0.0002058,2]
[336497155,1724881845950,-673.60037733,0.0002059,4]
[336497156,1724881845962,-286.68669669,0.0002059,4]
[336497157,1724881845975,-719.95798759,0.0002059,4]
[336497159,1724881845986,-2926.24615033,0.0002059,4]
[336497161,1724881845997,-779.46259794,0.0002059,4]
[336497163,1724881846012,-945.0,0.0002059,4]
[336497166,1724881846024,-2448.9903007,0.0002059,4]
[336497170,1724881846054,-3700.01618862,0.0002059,4]
[336497173,1724881846066,-504.02048829,0.0002059,4]
[336497175,1724881846079,-912.34615092,0.0002059,4]
[336497177,1724881846093,-856.20926424,0.0002059,4]
[336498489,1724882007443,172.09,0.00010959,2]
[336498501,1724882468871,1050.0,0.0001,2]
[336498516,1724882694413,200.0,9.95e-05,2]
[336498521,1724882947541,200.0,9.9e-05,2]
[336498523,1724883003045,150.0,9.9e-05,2]
[336498524,1724883003242,150.0,9.9e-05,2]
[336498525,1724883003746,151.46325954,9.9e-05,2]
[336498529,1724883031947,-479.16,0.000125,2]
[336498542,1724883038009,-1245.84,0.000125,2]
[336498543,1724883038019,-249.98,0.000125,2]
[336498544,1724883038028,-5525.0,0.000163,3]
[336498545,1724883038037,-156.77939307,0.00017492,2]
[336498546,1724883038050,-362.89,0.00017526,2]
[336498547,1724883038059,-172.09,0.00017592,2]
[336498548,1724883038068,-1000.49940813,0.00017971,2]
[336498549,1724883038078,-3698.76,0.00018192,2]
[336498550,1724883038088,-583.3,0.000187,7]
[336498551,1724883038097,-23900.0,0.00018881,2]
[336498552,1724883038107,-330.66,0.00018896,2]
[336498553,1724883038117,-173.35,0.00018934,2]
[336498554,1724883038127,-2751.0,0.00018938,2]
[336498555,1724883038137,-250.0,0.00018938,2]
[336498556,1724883038146,-1000.0,0.00018938,2]
[336498558,1724883038156,-150.0,0.00018951,2]
[336498560,1724883038166,-627.65,0.00018952,2]
[336498562,1724883038175,-1582.1,0.0001926,2]
[336498564,1724883038184,-395.38,0.00019443,2]
[336498566,1724883038194,-200.0,0.00019444,2]
[336498568,1724883038203,-395.38,0.00019448,2]
[336498569,1724883038212,-395.38,0.00019453,2]
[336498571,1724883038222,-395.38,0.00019458,2]
[336498573,1724883038232,-395.38,0.00019463,2]
[336498575,1724883038242,-395.38,0.00019468,2]
[336498578,1724883038251,-395.38,0.00019474,2]
[336498580,1724883038261,-395.38,0.00019479,2]
[336498581,1724883038271,-395.38,0.00019484,2]
[336498583,1724883038281,-395.38,0.00019489,2]
[336498584,1724883038296,-395.38,0.00019494,2]
[336498585,1724883038305,-395.38,0.00019499,2]
[336498586,1724883038315,-395.38,0.00019504,2]
[336498587,1724883038324,-395.38,0.00019509,2]
[336498588,1724883038334,-395.38,0.00019515,2]
[336498589,1724883038343,-395.38,0.0001952,2]
[336498590,1724883038354,-395.38,0.00019525,2]
[336498591,1724883038364,-395.38,0.0001953,2]
[336498592,1724883038375,-395.38,0.00019535,2]
[336498593,1724883038384,-395.38,0.0001954,2]
[336498594,1724883038393,-167.0,0.0001956,2]
[336498595,1724883038403,-362.89,0.0001979,2]
[336498596,1724883038412,-2344.6012642,0.0002,7]
[336498597,1724883038421,-531.26,0.00020082,2]
[336498598,1724883038430,-167.0,0.00020256,2]
[336498599,1724883038439,-500.0,0.000204,7]
[336498600,1724883038449,-500.0,0.0002043,2]
[336498601,1724883038460,-500.0,0.0002043,2]
[336498602,1724883038470,-245.20166469,0.0002048,2]
[336498603,1724883038479,-1000.0,0.00020489,2]
[336498604,1724883038489,-186.22651353,0.0002049,2]
[336498605,1724883038499,-13659.65301549,0.0002049,2]
[336498606,1724883038531,-6612.25158562,0.0002049,2]
[336498607,1724883038542,-11926.31589889,0.0002049,2]
[336498608,1724883038552,-261.475,0.000205,2]
[336498609,1724883038563,-1100.0,0.000205,7]
[336498610,1724883038573,-500.0,0.00020573,2]
[336498611,1724883038582,-2500.10351,0.0002058,2]
[336498612,1724883038591,-33926.8806436,0.0002058,4]
[336498613,1724883038600,-151.5,0.0002058,2]
[336498614,1724883038610,-151.5,0.0002058,2]
[336498615,1724883038619,-151.5,0.0002058,2]
[336498616,1724883038629,-151.5,0.0002058,2]
[336498617,1724883038639,-151.5,0.0002058,2]
[336498618,1724883038651,-804.50875084,0.00020587,2]
[336498619,1724883038661,-12307.94185382,0.0002059,4]
[336498620,1724883038673,-638.24848553,0.0002059,4]
[336498621,1724883038688,-4017.24998245,0.0002059,4]
[336498622,1724883038699,-151.5,0.0002059,2]
[336498623,1724883038708,-525.0,0.0002059,2]
[336498624,1724883038718,-168.52,0.0002059,30]
[336498625,1724883038727,-200.0,0.0002059,2]
[336498626,1724883038737,-2000.0,0.0002059,2]
[336498627,1724883038747,-200.0,0.0002059,2]
[336498628,1724883038756,-2000.0,0.0002059,2]
[336498629,1724883038765,-200.0,0.0002059,2]
[336498630,1724883038774,-373195.687079,0.0002059,4]
[336498631,1724883038784,-157991.69811174,0.0002059,4]
[336498632,1724883038809,-39420.0,0.0002059,4]
[336498634,1724883039947,-600.0,0.0002059,4]
[336498635,1724883039958,-1224.96970469,0.0002059,4]
[336498636,1724883039970,-667.8359,0.0002059,4]
[336498637,1724883040073,-550.1564575,0.0002059,4]
[336498638,1724883040084,-12921.63839813,0.0002059,4]
[336498639,1724883040103,-5029.4305011,0.0002059,4]
[336498640,1724883040114,-372.50946649,0.0002059,4]
[336498641,1724883040206,-983.78113628,0.0002059,4]
[336498644,1724883040219,-760.32601188,0.0002059,4]
[336498663,1724883042891,-241.61232419,0.000205,2]
[336498664,1724883042902,-6560.72660935,0.0002059,4]
[336498672,1724883043809,-501.39293075,0.0002059,4]
[336498673,1724883043821,-4332.55107642,0.0002059,4]
[336498674,1724883043859,-457.46955249,0.0002059,4]
[336498675,1724883043870,-6950.22205377,0.0002059,4]
[336498676,1724883043885,-253.88923684,0.0002059,4]
[336498677,1724883044841,-17268.42652662,0.0002059,4]
[336498678,1724883044855,-524.26,0.0002059,4]
[336498679,1724883044868,-451.22072221,0.0002059,4]
[336498680,1724883044883,-106801.29502917,0.0002059,4]
[336498681,1724883044909,-68768.91412927,0.0002059,4]
[336498683,1724883045825,-51766.7237353,0.0002059,4]
[336498684,1724883045834,-200.0,0.0002059,2]
[336498685,1724883045844,-151.5,0.0002059,2]
[336498686,1724883045854,-151.5,0.0002059,2]
[336498687,1724883045863,-151.5,0.0002059,2]
[336498688,1724883045872,-151.5,0.0002059,2]
[336498689,1724883045883,-151.5,0.0002059,2]
[336498690,1724883045894,-151.5,0.0002059,2]
[336498691,1724883045903,-151.5,0.0002059,2]
[336498692,1724883045913,-151.5,0.0002059,2]
[336498693,1724883045923,-151.5,0.0002059,2]
[336498694,1724883045932,-151.5,0.0002059,2]
[336498695,1724883045941,-151.5,0.0002059,2]
[336498696,1724883045950,-151.5,0.0002059,2]
[336498697,1724883045959,-151.5,0.0002059,2]
[336498698,1724883045968,-151.5,0.0002059,2]
[336498699,1724883045977,-151.5,0.0002059,2]
[336498700,1724883045986,-151.5,0.0002059,2]
[336498701,1724883045995,-151.5,0.0002059,2]
[336498702,1724883046004,-151.5,0.0002059,2]
[336498703,1724883046013,-151.5,0.0002059,2]
[336498704,1724883046024,-151.5,0.0002059,2]
[336498705,1724883046034,-151.5,0.0002059,2]
[336498706,1724883046043,-151.5,0.0002059,2]
[336498707,1724883046054,-151.5,0.0002059,2]
[336498708,1724883046063,-151.5,0.0002059,2]
[336498709,1724883046073,-151.5,0.0002059,2]
[336498710,1724883046082,-151.5,0.0002059,2]
[336498711,1724883046092,-151.5,0.0002059,2]
[336498712,1724883046104,-151.5,0.0002059,2]
[336498713,1724883046116,-151.5,0.0002059,2]
[336498714,1724883046127,-151.5,0.0002059,2]
[336498715,1724883046138,-151.5,0.0002059,2]
[336498716,1724883046148,-151.5,0.0002059,2]
[336498717,1724883046159,-151.5,0.0002059,2]
[336498718,1724883046170,-151.5,0.0002059,2]
[336498719,1724883046181,-151.5,0.0002059,2]
[336498720,1724883046191,-151.5,0.0002059,2]
[336498721,1724883046201,-151.5,0.0002059,2]
[336498722,1724883046211,-151.5,0.0002059,2]
[336498723,1724883046221,-151.5,0.0002059,2]
[336498724,1724883046232,-151.5,0.0002059,2]
[336498725,1724883046244,-151.5,0.0002059,2]
[336498726,1724883046254,-151.5,0.0002059,2]
[336498727,1724883046264,-151.5,0.0002059,2]
[336498728,1724883046273,-151.5,0.0002059,2]
[336498729,1724883046285,-151.5,0.0002059,2]
[336498730,1724883046294,-424.25927736,0.0002059,2]
[336498731,1724883046303,-1073.72102565,0.0002059,2]
[336498732,1724883046313,-6436.07000672,0.00020597,2]
[336498733,1724883046323,-2500.0,0.000206,5]
[336498734,1724883046332,-3561.12913546,0.000206,2]
[336498735,1724883046342,-19655.17836145,0.000206,15]
[336498736,1724883046351,-2500.0,0.000206,5]
[336498737,1724883046361,-3796.46,0.000206,2]
[336498738,1724883046371,-21882.5701872,0.000206,15]
[336498739,1724883046387,-4778.87436627,0.000206,15]
[336498740,1724883046406,-320.98,0.000206,15]
[336498741,1724883046418,-35920.16258702,0.000206,15]
[336498742,1724883046429,-397131.55141468,0.000206,15]
[336498745,1724883324439,300.0,1.01e-06,15]
[336498746,1724883525390,2000.0,0.0001,2]
[336498750,1724883919703,7594.00210003,9e-05,2]
[336498751,1724883953708,5886.85553282,6.94e-05,2]
[336498759,1724884032785,150.048482,0.00010958,2]
[336498760,1724884033236,150.048482,0.00010958,2]
[336498761,1724884033376,150.048482,0.00010958,2]
[336498762,1724884033511,154.700744,0.00010958,2]
[336498763,1724884033711,150.048482,0.00010997,2]
[336498764,1724884033801,154.700744,0.00010998,2]
[336498765,1724884034114,150.048482,0.00010998,2]
[336498766,1724884034150,154.700744,0.00010998,2]
[336498767,1724884034389,150.048482,0.00010998,2]
[336498768,1724884034696,150.048482,0.00010998,2]
[336498769,1724884035083,150.048482,0.00010998,2]
[336498770,1724884035408,150.048482,0.00010998,2]
[336498771,1724884035711,150.048482,0.00010998,2]
[336498772,1724884036339,150.048482,0.00010998,2]
[336498773,1724884036482,150.048482,0.00010998,2]
[336498774,1724884036729,150.048482,0.00010998,2]
[336498777,1724884037529,2937.46469,0.00010958,2]
[336498778,1724884037564,150.048482,0.00010998,2]
[336498779,1724884037683,2937.46469,0.00010958,2]
[336498780,1724884038047,2937.46469,0.00010958,2]
[336498781,1724884038227,2937.46469,0.00010958,2]
[336498782,1724884038366,2937.46469,0.00010958,2]
[336498783,1724884038543,2937.46469,0.00010997,2]
[336498784,1724884038862,2937.46469,0.00010997,2]
[336498785,1724884039254,2937.46469,0.00010997,2]
[336498786,1724884040132,2937.46469,0.00010998,2]
[336498787,1724884040295,2937.46469,0.00010998,2]
[336498788,1724884040440,2937.46469,0.00010998,2]
[336498789,1724884040511,3670.635255,0.00010958,2]
[336498790,1724884040750,2937.46469,0.00010998,2]
[336498791,1724884040809,3670.635255,0.00010958,2]
[336498792,1724884041056,2937.46469,0.00010998,2]
[336498793,1724884041129,3670.635255,0.00010958,2]
[336498794,1724884041354,2937.46469,0.00010998,2]
[336498795,1724884041444,3670.635255,0.00010958,2]
[336498796,1724884041747,2937.46469,0.00010998,2]
[336498797,1724884041779,3670.635255,0.00010958,2]
[336498798,1724884042003,2937.46469,0.00010998,2]
[336498799,1724884042155,3670.635255,0.00010997,2]
[336498800,1724884042308,2937.46469,0.00010998,2]
[336498801,1724884042465,3670.635255,0.00010997,2]
[336498802,1724884042625,2937.46469,0.00010998,2]
[336498803,1724884042774,3670.635255,0.00010997,2]
[336498804,1724884043009,2937.46469,0.00010998,2]
[336498805,1724884043071,3670.635255,0.00010998,2]
[336498806,1724884043258,2937.46469,0.00010998,2]
[336498807,1724884043385,3670.635255,0.00010998,2]
[336498808,1724884043588,2937.46469,0.00010998,2]
[336498809,1724884043799,3670.635255,0.00010998,2]
[336498810,1724884043898,2937.46469,0.00010998,2]
[336498811,1724884044112,3670.635255,0.00010998,2]
[336498812,1724884044438,3670.635255,0.00010998,2]
[336498813,1724884044660,2937.46469,0.00010998,2]
[336498814,1724884044831,3670.635255,0.00010998,2]
[336498815,1724884044940,2937.46469,0.00010998,2]
[336498816,1724884045173,3670.635255,0.00010998,2]
[336498817,1724884045260,2937.46469,0.00010998,2]
[336498818,1724884045492,3670.635255,0.00010998,2]
[336498819,1724884045558,2937.46469,0.00010998,2]
[336498820,1724884045791,3670.635255,0.00010998,2]
[336498821,1724884045863,2937.46469,0.00010998,2]
[336498822,1724884045915,1145.926038,0.00010958,2]
[336498823,1724884046455,3670.635255,0.00010998,2]
[336498824,1724884046604,1145.926038,0.00010958,2]
[336498825,1724884046686,3670.635255,0.00010998,2]
[336498826,1724884046724,1145.926038,0.00010958,2]
[336498827,1724884046766,2937.46469,0.00010998,2]
[336498828,1724884046820,3670.635255,0.00010998,2]
[336498829,1724884046860,1145.926038,0.00010958,2]
[336498830,1724884047103,3670.635255,0.00010998,2]
[336498831,1724884047144,2937.46469,0.00010998,2]
[336498832,1724884047170,1145.926038,0.00010958,2]
[336498833,1724884047398,3670.635255,0.00010998,2]
[336498834,1724884048091,2937.46469,0.00010998,2]
[336498835,1724884048129,1145.926038,0.00010997,2]
[336498836,1724884048412,2937.46469,0.00010998,2]
[336498837,1724884048447,3670.635255,0.00010998,2]
[336498838,1724884048650,3670.635255,0.00010998,2]
[336498839,1724884048689,1145.926038,0.00010997,2]
[336498840,1724884048771,3670.635255,0.00010998,2]
[336498841,1724884048808,1145.926038,0.00010997,2]
[336498842,1724884048998,3670.635255,0.00010998,2]
[336498843,1724884049116,1145.926038,0.00010998,2]
[336498844,1724884049256,3670.635255,0.00010998,2]
[336498845,1724884049388,3670.635255,0.00010998,2]
[336498846,1724884049916,1145.926038,0.00010998,2]
[336498847,1724884049950,3670.635255,0.00010998,2]
[336498848,1724884050228,1145.926038,0.00010998,2]
[336498849,1724884050266,3670.635255,0.00010998,2]
[336498850,1724884050321,1145.926038,0.00010998,2]
[336498851,1724884050407,3670.635255,0.00010998,2]
[336498852,1724884050739,1145.926038,0.00010998,2]
[336498853,1724884050970,1145.926038,0.00010998,2]
[336498854,1724884051274,1145.926038,0.00010998,2]
[336498855,1724884051589,1145.926038,0.00010998,2]
[336498856,1724884051910,1145.926038,0.00010998,2]
[336498857,1724884052216,1145.926038,0.00010998,2]
[336498858,1724884052529,1145.926038,0.00010998,2]
[336498859,1724884052823,1145.926038,0.00010998,2]
[336498860,1724884053151,1145.926038,0.00010998,2]
[336498861,1724884053632,1145.926038,0.00010998,2]
[336498862,1724884053923,1145.926038,0.00010998,2]
[336498863,1724884054247,1145.926038,0.00010998,2]
[336498864,1724884054914,1145.926038,0.00010998,2]
[336498865,1724884055199,1145.926038,0.00010998,2]
[336498866,1724884055511,1145.926038,0.00010998,2]
[336498867,1724884055836,1145.926038,0.00010998,2]
[336498868,1724884056156,1145.926038,0.00010998,2]
[336498869,1724884056457,1145.926038,0.00010998,2]
[336498870,1724884056758,1145.926038,0.00010998,2]
[336498898,1724884232618,-150.0,0.000125,2]
[336498899,1724884232628,-149.99,0.00013,2]
[336498900,1724884232644,-146.47937851,0.00013,2]
[336498901,1724884232654,-382.7,0.00017382,2]
[336498902,1724884232663,-150.0,0.00018518,2]
[336498903,1724884232674,-291.65,0.000187,7]
[336498904,1724884232683,-200.0,0.00019201,2]
[336498905,1724884232693,-190.62338386,0.00019207,2]
[336498906,1724884232705,-123.19661614,0.00019207,2]
[336498907,1724884232716,-1074.97113386,0.00019244,2]
[336498910,1724884238061,-6757.0,0.00019244,2]
[336498911,1724884238072,-306.53181999,0.00019244,2]
[336498912,1724884238087,-987.67332547,0.00019244,2]
[336498913,1724884238153,-569.78816292,0.00019244,2]
[336498914,1724884238294,-3120.01875142,0.00019244,2]
[336499082,1724884240024,-384.522,0.00019244,2]
[336499085,1724884240036,-330.38500001,0.00019244,2]
[336499087,1724884240046,-6370.15614081,0.00019244,2]
[336499089,1724884240058,-1247.13049429,0.00019244,2]
[336499092,1724884240076,-2751.82317123,0.00019244,2]
[336499094,1724884240085,-2751.0,0.00019255,2]
[336499096,1724884240094,-1000.0,0.0001928,2]
[336499098,1724884240103,-250.0,0.00019337,2]
[336499100,1724884240113,-360.2,0.00019424,2]
[336499102,1724884240122,-150.0,0.00019424,2]
[336499104,1724884240131,-150.99,0.00019424,2]
[336499106,1724884240140,-365.33,0.00019439,2]
[336499108,1724884240149,-150.99,0.00019439,2]
[336499110,1724884240159,-188.19,0.00019439,2]
[336499111,1724884240168,-822.42395038,0.00019439,2]
[336499114,1724884240182,-466.55604962,0.00019439,2]
[336499116,1724884240192,-3272.62,0.00019581,2]
[336499118,1724884240201,-382.7,0.00019646,2]